[Event "85th ARM-ch HL 2025"]
[Site "Yerevan"]
[Date "2025.01.15"]
[Round "2.1"]
[White "Davtyan, Artur"]
[Black "Sargsyan, Sargis Vach."]
[Result "1-0"]
[Annotator "TA"]
[ECO "D46"]
[WhiteElo "2458"]
[BlackElo "2370"]
[PlyCount "63"]
[EventDate "2025.01.13"]
[EventType "tourn"]
[EventCountry "ARM"]
[SourceTitle "playchess.com"]
[Source "ChessBase"]
[SourceQuality "1"]
[TimeControl "40/5400+30:1800+30"]

{[%evp 21,63,18,29,31,14,0,7,2,22,10,11,10,8,15,16,4,33,52,31,41,39,43,45,37,41,35,22,41,447,420,448,442,437,433,433,427,1466,1397,1961,1825,2273,2270,1531,1451]} 1. d4 {[%emt 0:00:12]} Nf6 {[%emt 0:00:16]} 2. c4 {[%emt 0:03:03]} e6 {[%emt 0:00:22]} 3. Nf3 {[%emt 0:00:17]} d5 {[%emt 0:00:24]} 4. Nc3 {[%emt 0:00:11]} c6 {[%emt 0:02:01]} 5. e3 {[%emt 0:04:45]} Nbd7 {[%emt 0:00:18]} 6. Qc2 {[%emt 0:00:05]} Bd6 {[%emt 0:00:48]} 7. Bd3 {[%emt 0:02:34]} O-O {[%emt 0:00:28]} 8. O-O {[%emt 0:00:20]} dxc4 {[%emt 0:02:44]} 9. Bxc4 {[%emt 0:01:28]} b5 {[%emt 0:00:36]} 10. Be2 {[%emt 0:00:01]} Bb7 {[%emt 0:00:22]} 11. e4 {[%emt 0:01:18]} e5 $1 {[%emt 0:00:28]} 12. dxe5 {[%emt 0:00:06]} Nxe5 {[%emt 0:00:03]} 13. Nd4 {[%emt 0:00:07]} Neg4 {[%emt 0:00:06]} 14. g3 {[%emt 0:00:05]} Bc5 {[%emt 0:00:04]} (14... Bxg3 $5 15. hxg3 Qxd4 $11) 15. Nf5 {[%emt 0:00:05][%cal Oe4e5]} Re8 {[%emt 0:00:15]} 16. Bf4 {[%emt 0:35:40]} Qb6 {[%emt 0:00:18]} 17. Bxg4 {[%emt 0:00:22]} Nxg4 {[%emt 0:00:09]} 18. Qe2 {[%emt 0:00:12]} Ne5 {[%emt 0:01:50]} 19. Bxe5 {[%emt 0:02:22]} Rxe5 {[%emt 0:00:04]} 20. Qg4 $1 {[%emt 0:00:05][%csl Gf5][%cal Rg4g7]} g6 {[%emt 0:00:13]} 21. Qf4 {[%emt 0:01:54]} f6 $1 {[%emt 0:05:56]} 22. Nh6+ $40 {[%emt 0:05:43][%mdl 128] Black needs to defend precisely.} Kg7 {[%emt 0:00:04]} 23. Ng4 {[%emt 0:00:18][%csl LRe5,LRf6]} Re6 {[%emt 0:00:11]} 24. Rad1 {[%emt 0:00:21] Prevents Qd8.} Rf8 $2 {[%emt 0:04:03][%mdl 8192]} (24... Rd8 $14) 25. Rd7+ {[%emt 0:14:18]} Be7 {[%emt 0:08:34]} 26. Qh6+ {[%emt 0:09:33]} Kg8 {[%emt 0:00:00] [#] ...Bc8 would now be deadly.} 27. e5 $1 {[%emt 0:00:22][%mdl 512]} fxe5 {[%emt 0:06:46]} ({Avoid the trap} 27... Bc8 $2 28. Nxf6+ (28. exf6 Rfxf6 29. Nxf6+ Kf7 $18) 28... Rexf6 29. exf6 (29. Rxe7 R6f7 $18)) 28. Ne4 {[%emt 0:00:26]} Rf7 {[%emt 0:09:51]} (28... Bc8 $142) 29. Qh3 $18 {[%emt 0:00:09] White threatens Nh6+ and mate.} Kf8 {[%emt 0:10:27]} 30. Nh6 {[%emt 0:00:10][%csl LRe6,LRf7] A dynamic duo of knights.} Rff6 {[%emt 0:02:34]} 31. Nxf6 {[%emt 0:00:02]} Rxf6 {[%emt 0:00:07] [#]} 32. Rxe7 $1 {[%emt 0:00:06]} 1-0

[Event "85th ARM-ch HL 2025"]
[Site "Yerevan"]
[Date "2025.01.15"]
[Round "2.2"]
[White "Hovhannisyan, Robert"]
[Black "Andriasian, Zaven"]
[Result "1/2-1/2"]
[Annotator "TA"]
[ECO "B60"]
[WhiteElo "2626"]
[BlackElo "2554"]
[PlyCount "53"]
[EventDate "2025.01.13"]
[EventType "tourn"]
[EventCountry "ARM"]
[SourceTitle "playchess.com"]
[Source "ChessBase"]
[SourceQuality "1"]
[TimeControl "40/5400+30:1800+30"]

{[%evp 20,53,54,37,40,34,35,30,33,20,51,43,38,37,34,46,46,37,39,29,121,114,290,150,159,132,123,60,69,0,0,0,0,0,0,-105]} 1. e4 {[%emt 0:00:03]} c5 {[%emt 0:00:10]} 2. Nf3 {[%emt 0:00:09]} d6 {[%emt 0:00:07]} 3. d4 {[%emt 0:00:06]} cxd4 {[%emt 0:00:08]} 4. Nxd4 {[%emt 0:00:04]} Nf6 {[%emt 0:00:11]} 5. Nc3 {[%emt 0:00:04]} a6 {[%emt 0:00:09]} 6. Bg5 {[%emt 0:00:27]} e6 {[%emt 0:00:26]} 7. f4 {[%emt 0:00:08]} Qb6 {[%emt 0:00:48]} 8. Qd2 {[%emt 0:00:17]} Nc6 {[%emt 0:05:31]} 9. Bxf6 {[%emt 0:00:35]} gxf6 {[%emt 0:00:03]} 10. Nb3 {[%emt 0:00:11]} Bd7 {[%emt 0:00:41]} 11. O-O-O {[%emt 0:00:40]} O-O-O {[%emt 0:00:28][%cal Ba8d8,Bd8c8,Bc8c4][%mdl 32]} 12. Kb1 {[%emt 0:00:53]} Kb8 {[%emt 0:01:23]} 13. Be2 {[%emt 0:00:45]} h5 {[%emt 0:00:49]} 14. h4 {[%emt 0:00:53]} Na5 {[%emt 0:08:38]} 15. Rh3 {[%emt 0:02:25][%cal Bh1h3,Bh3e3,Be3d3][%mdl 32]} Rc8 {[%emt 0:10:46]} 16. Re3 {[%emt 0:02:13][%cal Oc3d5]} Nc4 {[%emt 0:07:23]} 17. Bxc4 {[%emt 0:00:09]} Rxc4 {[%emt 0:00:04]} 18. g3 {[%emt 0:20:40]} Be7 {[%emt 0:01:43]} 19. Qe2 {[%emt 0:01:38][%cal Of4f5]} Rhc8 {[%emt 0:01:39]} (19... Rcc8 $11) 20. Red3 $16 {[%emt 0:02:02]} d5 $2 {[%emt 0:29:19]} 21. exd5 {[%emt 0:10:42]} ({Only move:} 21. Qxh5 $18 Bb4 22. Qxf7 (22. exd5 e5 $16) 22... Bxc3 23. bxc3 (23. Qxd7 R4c7 $11) (23. Rxc3 Rxc3 24. bxc3 Bb5 $16)) 21... Bb4 {[%emt 0:01:08]} 22. Qxh5 {[%emt 0:03:10]} e5 {[%emt 0:01:28]} 23. Qxf7 {[%emt 0:05:10]} (23. fxe5 Bg4 24. Qxf7 (24. Na4 $2 Qf2 $19) 24... Bxc3 25. bxc3 Bxd1 26. Rxd1 Rxc3 27. Qxf6 (27. exf6 Rxc2 28. Qe6 Qb4 $17) 27... Qc7 $17) ({White should try} 23. d6 $16 Bxc3 24. Rxc3 Rxc3 25. bxc3) 23... Bf5 $1 $14 {[%emt 0:02:16]} 24. fxe5 {[%emt 0:09:12]} (24. d6 $1 $14 Bxd3 25. Rxd3 (25. cxd3 Rxc3 26. d7 Rf8 $16) 25... Bxd6 26. Qxf6) 24... Bxc3 $11 {[%emt 0:05:13]} 25. bxc3 {[%emt 0:08:26]} Bxd3 {[%emt 0:00:38]} 26. Rxd3 {[%emt 0:00:19]} (26. cxd3 Rxc3 27. Ka1 (27. Qxf6 {leads to mate.} Rxb3+ 28. axb3 Qxb3+ 29. Ka1 Rc2 30. Qf8+ Ka7) (27. d6 $2 Qf2 $19) 27... Rxb3 (27... fxe5 $2 28. Qe6 $19) 28. axb3 Qa5+ (28... Qxb3 $2 29. Qxb7+ Qxb7 30. Rb1 $19) 29. Kb2 (29. Kb1 $2 Qc3 $19) 29... Qc3+ 30. Ka3 Qc5+ 31. b4 (31. Ka4 b6) 31... Qc2) 26... fxe5 {[%emt 0:00:37][%cal Ob8a7]} 27. Qe7 {[%emt 0:15:21]} (27. Kb2 $11) 1/2-1/2

[Event "85th ARM-ch HL 2025"]
[Site "Yerevan"]
[Date "2025.01.15"]
[Round "2.3"]
[White "Hayrapetyan, Hovik"]
[Black "Petrosyan, Manuel"]
[Result "1/2-1/2"]
[Annotator "TA"]
[ECO "D37"]
[WhiteElo "2462"]
[BlackElo "2590"]
[PlyCount "24"]
[EventDate "2025.01.13"]
[EventType "tourn"]
[EventCountry "ARM"]
[SourceTitle "playchess.com"]
[Source "ChessBase"]
[SourceQuality "1"]
[TimeControl "40/5400+30:1800+30"]

{[%evp 18,24,14,13,7,13,21,10,10]} 1. d4 {[%emt 0:00:03]} d5 {[%emt 0:07:02]} 2. c4 {[%emt 0:00:07]} e6 {[%emt 0:00:20]} 3. Nc3 {[%emt 0:00:08]} Be7 {[%emt 0:01:12]} 4. Nf3 {[%emt 0:00:08]} Nf6 {[%emt 0:00:08]} 5. Bf4 {[%emt 0:00:26]} O-O {[%emt 0:00:17]} 6. e3 {[%emt 0:00:22]} Nbd7 {[%emt 0:00:42]} 7. Be2 {[%emt 0:00:26]} dxc4 {[%emt 0:02:06]} 8. O-O {[%emt 0:00:14]} c5 {[%emt 0:01:06]} 9. dxc5 {[%emt 0:04:26]} Nxc5 {[%emt 0:01:58]} 10. Bxc4 {[%emt 0:00:21] The position is equal.} Qxd1 {[%emt 0:02:35]} 11. Rfxd1 {[%emt 0:00:16]} b6 {[%emt 0:02:13]} 12. Rac1 {[%emt 0:10:15]} Bb7 {[%emt 0:02:15] A rather calm draw.   Weighted Error Value: White=0.05 (flawless) /Black=0.04 (flawless) .  OK:         	---       	Black=1} 1/2-1/2

[Event "85th ARM-ch HL 2025"]
[Site "Yerevan"]
[Date "2025.01.15"]
[Round "2.4"]
[White "Grigoryan, Karen H."]
[Black "Gharibyan, Mamikon"]
[Result "1/2-1/2"]
[Annotator "TA"]
[ECO "C22"]
[WhiteElo "2572"]
[BlackElo "2486"]
[PlyCount "71"]
[EventDate "2025.01.13"]
[EventType "tourn"]
[EventCountry "ARM"]
[SourceTitle "playchess.com"]
[Source "ChessBase"]
[SourceQuality "1"]
[TimeControl "40/5400+30:1800+30"]

{[%evp 9,71,0,0,0,-8,0,2,-12,0,-9,-14,-8,0,-20,0,0,10,15,12,0,0,0,0,0,16,-3,-15,-3,-21,-12,-9,-33,-29,-68,-70,-84,-85,-97,-34,-52,-11,-80,-25,-87,0,0,0,0,44,0,0,0,0,-61,-47,-41,0,0,0,-48,0,0,0,-62]} 1. e4 {[%emt 0:00:24]} e5 {[%emt 0:00:13]} 2. d4 {[%emt 0:00:15]} exd4 {[%emt 0:00:06]} 3. Qxd4 {[%emt 0:00:05]} Nc6 {[%emt 0:00:26]} 4. Qc4 {[%emt 0:00:15]} Nf6 {[%emt 0:00:23]} 5. Nc3 {[%emt 0:00:08]} Bb4 {[%emt 0:00:26]} 6. Bd2 {[%emt 0:00:09]} O-O {[%emt 0:00:34]} 7. O-O-O {[%emt 0:00:08]} Re8 {[%emt 0:00:22]} 8. f3 {[%emt 0:00:09]} d6 {[%emt 0:00:29][%cal Bd7d6,Bd6d5][%mdl 32]} 9. Qe2 {[%emt 0:00:45]} d5 {[%emt 0:00:55]} 10. a3 {[%emt 0:00:08] [#]} a5 $1 {[%emt 0:01:00][%cal Oc8d7]} 11. Nh3 {[%emt 0:00:15]} (11. Be1 Be6) 11... Bxh3 {[%emt 0:31:22]} (11... Bd7 $5) 12. gxh3 {[%emt 0:00:12]} Qc8 {[%emt 0:15:50][%cal Od5e4]} 13. Qg2 {[%emt 0:03:54] Rg1 is the strong threat.} (13. axb4 axb4 14. Nb1 dxe4 $14) 13... dxe4 $1 {[%emt 0:02:35]} 14. fxe4 {[%emt 0:09:49]} (14. axb4 axb4 15. Bh6 Ng4 (15... bxc3 16. Qxg7#) 16. Qxg4 (16. hxg4 bxc3 17. bxc3 Ra1+ 18. Kb2 Rxd1 $19) 16... Qxg4 17. hxg4 bxc3 (17... gxh6 18. Nxe4 Ra1+ 19. Kd2 $16) 18. bxc3 Ra1+ (18... gxh6 19. fxe4 Rxe4 20. Kb2 $17) 19. Kd2 Rxd1+ 20. Kxd1 gxh6 $15) 14... Qe6 $1 {[%emt 0:04:41][%cal Rf6e4]} 15. Kb1 {[%emt 0:09:56]} (15. axb4 axb4 16. Nb1 (16. Rg1 $2 Ra1+ 17. Nb1 g6 $17) 16... Ra1 $17) 15... Bxc3 {[%emt 0:20:27]} 16. Bxc3 {[%emt 0:00:14]} Ne5 {[%emt 0:01:58]} 17. Bb5 {[%emt 0:01:38] A strong pair of Bishops.} c6 $1 {[%emt 0:01:35]} 18. Ba4 $132 {[%emt 0:00:28][%mdl 2048] White puts up resistance} Ng6 {[%emt 0:01:52]} 19. Bb3 {[%emt 0:15:05]} Qxe4 {[%emt 0:00:20]} 20. Qg3 {[%emt 0:00:33]} a4 {[%emt 0:03:29]} 21. Ba2 {[%emt 0:02:00]} Rad8 $1 {[%emt 0:01:46]} 22. Qc7 {[%emt 0:03:59]} Qe7 {[%emt 0:01:08]} 23. Qb6 {[%emt 0:02:30] [#]} Nf4 {[%emt 0:04:24]} (23... Rd7 $1 $17) 24. Bxf6 {[%emt 0:08:39]} gxf6 {[%emt 0:03:15]} (24... Qxf6 25. Rxd8 Qxd8 (25... Rxd8 26. Qxb7 Nxh3 27. Bc4 $11) 26. Qxb7 $11) 25. h4 {[%emt 0:07:36]} (25. Rhg1+ $11 Ng6 26. Bc4) 25... Rxd1+ $17 {[%emt 0:02:01]} 26. Rxd1 {[%emt 0:00:07] [#]} f5 {[%emt 0:01:18]} (26... h5 $1 $17 27. Bc4 (27. Qd4 Ng6 $11) 27... Kg7) 27. Qd4 {[%emt 0:02:22]} Qe5 {[%emt 0:00:27] Repels Qxf4} (27... Qxh4 $2 28. Rg1+ $18 (28. Qxa4 Re1 $17)) 28. Qxa4 {[%emt 0:00:49]} Kg7 {[%emt 0:00:22]} 29. Bb3 {[%emt 0:01:21]} Ne6 {[%emt 0:00:36]} 30. Qc4 {[%emt 0:01:05] Inhibits Nc5.} Rd8 {[%emt 0:00:26] Inhibits Rd7.} 31. Rg1+ {[%emt 0:03:50]} ({White should play} 31. Rxd8 $11 Nxd8 32. Qd3) 31... Kf6 $15 {[%emt 0:00:09]} 32. Qb4 {[%emt 0:01:48] Prevents Rd2.} Nc5 {[%emt 0:00:42][%cal Oe5e3] ...Qe3! would now be deadly.} 33. Qa5 $1 {[%emt 0:02:53] Dancing on a razor blade.} Ne6 {[%emt 0:00:28]} (33... Rd4 $11 34. Qa8 (34. Re1 Qd6 $15) 34... Nxb3 (34... Qxh2 $2 {perishes.} 35. Qh8+ Ke7 36. Qxd4 $18) 35. cxb3 f4 (35... Rxh4 36. Qd8+ Qe7 37. Qh8+ Ke6 38. Rd1 $14) (35... Qe4+ 36. Ka2 $14)) 34. Qb4 $1 {[%emt 0:03:39]} Nc5 {[%emt 0:00:04]} (34... Qxh2 35. Rc1 $11) (34... Qc5 $15 {feels stronger.} 35. Qe1 Rd2) 35. Qa5 $1 $11 {[%emt 0:04:35]} Ne6 {[%emt 0:00:04]} (35... Qd4 $11 36. Rf1 b5) 36. Qb4 $1 {[%emt 0:00:27]} 1/2-1/2

[Event "85th ARM-ch HL 2025"]
[Site "Yerevan"]
[Date "2025.01.15"]
[Round "2.5"]
[White "Harutyunyan, Tigran K."]
[Black "Agasarov, Benik"]
[Result "1/2-1/2"]
[Annotator "TA"]
[ECO "D02"]
[WhiteElo "2513"]
[BlackElo "2387"]
[PlyCount "87"]
[EventDate "2025.01.13"]
[EventType "tourn"]
[EventCountry "ARM"]
[SourceTitle "playchess.com"]
[Source "ChessBase"]
[SourceQuality "1"]
[TimeControl "40/5400+30:1800+30"]

{[%evp 11,87,31,23,22,21,1,24,20,19,23,17,25,24,20,18,12,35,22,32,34,28,10,16,0,6,0,14,6,28,16,23,30,29,3,0,0,21,8,0,0,5,0,27,29,9,14,47,35,38,43,52,36,33,33,37,18,12,10,8,6,6,6,4,3,2,2,8,0,0,0,0,0,0,0,0,0,6,0]} 1. d4 {[%emt 0:00:13]} Nf6 {[%emt 0:00:07]} 2. Nf3 {[%emt 0:00:18]} d5 {[%emt 0:00:21]} 3. Bf4 {[%emt 0:00:29]} c5 {[%emt 0:02:20]} 4. e3 {[%emt 0:00:59]} Nc6 {[%emt 0:01:05]} 5. Nbd2 {[%emt 0:00:18]} Bg4 {[%emt 0:04:04]} 6. c3 {[%emt 0:00:36]} e6 {[%emt 0:00:13]} 7. Qb3 {[%emt 0:00:25]} Qc8 {[%emt 0:01:20]} 8. h3 {[%emt 0:00:16]} Bxf3 {[%emt 0:01:38]} 9. Nxf3 {[%emt 0:00:18]} Be7 {[%emt 0:01:00][%cal Bf8e7,Be7c5,Bc5d4][%mdl 32]} 10. Be2 {[%emt 0:11:43]} O-O {[%emt 0:00:21]} 11. O-O {[%emt 0:00:55]} a6 {[%emt 0:05:12]} 12. dxc5 {[%emt 0:06:40]} Bxc5 {[%emt 0:02:15]} 13. Rac1 {[%emt 0:01:39]} h6 {[%emt 0:19:11]} 14. c4 {[%emt 0:17:43]} d4 {[%emt 0:02:02][%cal Oe6e5]} 15. exd4 {[%emt 0:01:37]} Bxd4 {[%emt 0:00:06]} 16. Rfe1 {[%emt 0:05:32]} Rd8 {[%emt 0:12:43]} 17. Bf1 {[%emt 0:05:58]} Bc5 {[%emt 0:01:05]} 18. a3 {[%emt 0:05:23]} Nd4 {[%emt 0:05:06]} 19. Qc3 {[%emt 0:04:44]} Nxf3+ {[%emt 0:01:23]} 20. Qxf3 {[%emt 0:00:02][%cal Of4h6]} Bd4 {[%emt 0:01:10]} 21. b4 {[%emt 0:03:54]} a5 {[%emt 0:03:23]} 22. c5 {[%emt 0:05:46]} axb4 {[%emt 0:00:07]} 23. axb4 {[%emt 0:00:03]} Qc6 {[%emt 0:08:31]} 24. Qb3 {[%emt 0:07:00]} Qa4 {[%emt 0:06:00]} 25. Qb1 {[%emt 0:06:01]} Nd5 {[%emt 0:02:59][%csl LRb4,LRf4]} 26. Bd2 {[%emt 0:00:09]} Qa2 {[%emt 0:00:49]} 27. Rc2 {[%emt 0:00:48]} Qxb1 {[%emt 0:00:12]} 28. Rxb1 {[%emt 0:00:03]} Rdc8 {[%emt 0:01:43]} 29. g3 {[%emt 0:01:11]} Ra3 {[%emt 0:01:23]} 30. Kg2 {[%emt 0:00:57] Prevents Rf3.} Bc3 {[%emt 0:01:07]} 31. Bc4 {[%emt 0:02:26]} Bxd2 {[%emt 0:00:40]} 32. Rxd2 {[%emt 0:00:29]} Rd8 {[%emt 0:01:04]} 33. Bxd5 {[%emt 0:04:04]} Rxd5 $14 {[%emt 0:05:51][%mdl 4096] Endgame KRR-KRR} 34. Rc2 {[%emt 0:00:25]} Ra8 {[%emt 0:04:14]} 35. b5 {[%emt 0:00:23]} Rc8 {[%emt 0:02:03]} 36. c6 {[%emt 0:00:23]} bxc6 $1 {[%emt 0:02:41]} 37. bxc6 {[%emt 0:00:02]} Kf8 {[%emt 0:00:25]} 38. Rb7 {[%emt 0:00:13]} g6 {[%emt 0:00:48]} 39. g4 {[%emt 0:01:35]} Rd6 {[%emt 0:00:49]} 40. Ra2 {[%emt 0:00:00] aiming for Raa7.} e5 {[%emt 0:00:00]} 41. Raa7 {[%emt 0:02:04]} Rf6 $1 {[%emt 0:00:12]} 42. Rc7 {[%emt 0:01:49]} Rxc7 {[%emt 0:02:10]} 43. Rxc7 {[%emt 0:00:20]} Ke8 {[%emt 0:01:45]} 44. h4 {[%emt 0:02:04]} 1/2-1/2

[Event "85th ARM-ch HL 2025"]
[Site "Yerevan"]
[Date "2025.01.16"]
[Round "3.1"]
[White "Agasarov, Benik"]
[Black "Davtyan, Artur"]
[Result "1/2-1/2"]
[Annotator "TA"]
[ECO "C54"]
[WhiteElo "2387"]
[BlackElo "2458"]
[PlyCount "72"]
[EventDate "2025.01.13"]
[EventType "tourn"]
[EventCountry "ARM"]
[SourceTitle "playchess.com"]
[Source "ChessBase"]
[SourceQuality "1"]
[TimeControl "40/5400+30:1800+30"]

{[%evp 12,72,23,10,12,14,27,26,25,13,18,18,29,12,0,-3,0,-10,-20,-5,-14,-16,-19,-21,-17,-25,0,6,9,0,0,-21,-4,-29,8,7,3,7,9,10,6,12,18,8,11,15,7,8,33,24,35,27,101,70,129,93,149,26,27,25,27,6,8]} 1. e4 {[%emt 0:00:04]} e5 {[%emt 0:01:12]} 2. Nf3 {[%emt 0:00:06]} Nc6 {[%emt 0:00:05]} 3. Bc4 {[%emt 0:00:04]} Bc5 {[%emt 0:02:13]} 4. c3 {[%emt 0:00:07]} Nf6 {[%emt 0:00:06]} 5. d3 {[%emt 0:00:06]} O-O {[%emt 0:00:07]} 6. O-O {[%emt 0:00:05]} d6 {[%emt 0:02:13]} 7. h3 {[%emt 1:33:28]} a5 {[%emt 0:00:47]} 8. Re1 {[%emt 0:00:00]} Ba7 {[%emt 0:00:17]} 9. Nbd2 {[%emt 0:00:00][%cal Bb1d2,Bd2f1,Bf1g3][%mdl 32]} Ne7 {[%emt 0:00:18]} 10. Nf1 {[%emt 0:00:00]} Ng6 {[%emt 0:00:56]} 11. Ng3 {[%emt 0:00:00]} c6 {[%emt 0:00:13][%cal Oa5a4]} 12. d4 {[%emt 0:00:00]} exd4 {[%emt 0:02:13]} 13. cxd4 {[%emt 0:00:00] [#]} Nxe4 $1 {[%emt 0:11:59]} 14. Nxe4 {[%emt 0:00:00]} (14. Rxe4 d5 15. Bxd5 (15. Bg5 f6 $17) 15... Qxd5 $17) 14... d5 {[%emt 0:00:10]} 15. Bd3 {[%emt 0:00:00]} (15. Bg5 f6 16. Bb3 fxg5 (16... a4 17. Bd2 $17) 17. Nexg5 Nf4 $17) 15... dxe4 {[%emt 0:00:02]} 16. Bxe4 {[%emt 0:00:00]} Be6 {[%emt 0:00:12]} 17. Qc2 {[%emt 0:00:00]} Bd5 {[%emt 0:01:18]} 18. Bd2 {[%emt 0:00:00]} Re8 {[%emt 0:00:24]} 19. Bxd5 {[%emt 0:00:00]} Rxe1+ {[%emt 0:05:27]} 20. Rxe1 {[%emt 0:00:00][%cal Od5f7] And now Bxf7+! would win.} Qxd5 {[%emt 0:01:02]} 21. Qa4 {[%emt 0:00:00]} Bb6 {[%emt 0:02:00]} 22. Re3 {[%emt 0:00:00][%cal Be1e3,Be3d3,Bd3d5][%mdl 32]} h6 {[%emt 0:06:22]} 23. Qb3 {[%emt 0:00:00]} Qd8 {[%emt 0:05:00]} 24. a4 {[%emt 0:00:00]} Rb8 {[%emt 0:00:38][%cal Ba8b8,Bb8e8,Be8e6,Be6f6][%mdl 32]} 25. Rd3 {[%emt 0:00:00]} Qc7 {[%emt 0:07:04]} 26. d5 {[%emt 0:00:00]} cxd5 {[%emt 0:01:23]} 27. Rxd5 {[%emt 0:00:00]} Re8 {[%emt 0:00:11]} (27... Bc5 {simplifies} 28. Be3 Bxe3 29. Qxe3 b6) 28. Qb5 {[%emt 0:00:00][%csl LRa5,LRe8]} Re6 {[%emt 0:01:52]} 29. Nd4 {[%emt 0:00:47]} Rf6 {[%emt 0:13:04]} 30. Be3 {[%emt 0:01:19]} (30. Bxa5 $2 Bxa5 31. Rc5 (31. Qxa5 $2 Qc1+ 32. Kh2 Rxf2 $19) 31... Qd6 $19) 30... Kh7 {[%emt 0:07:08]} 31. Qd3 {[%emt 0:01:01]} Qc8 {[%emt 0:01:39]} (31... Kg8 $11 {remains equal.}) 32. b3 {[%emt 0:01:52] White is more active.} (32. h4 {seems wilder.} Kh8 33. Nf5 Bc7 34. Nxh6 Qe6 35. Rd8+) 32... Bxd4 {[%emt 0:03:01]} (32... Kg8 $14) 33. Qxd4 {[%emt 0:01:02]} Qc6 {[%emt 0:01:53]} (33... Rf5 $142) 34. Qc4 {[%emt 0:01:25]} (34. Rc5 $16 Qb6 35. Qc4) 34... Qxc4 $1 $11 {[%emt 0:15:35]} 35. bxc4 {[%emt 0:06:34]} Rc6 36. Rxa5 {[%emt 0:00:00]} Rxc4 {[%emt 0:00:06]} 1/2-1/2

[Event "85th ARM-ch HL 2025"]
[Site "Yerevan"]
[Date "2025.01.16"]
[Round "3.2"]
[White "Gharibyan, Mamikon"]
[Black "Harutyunyan, Tigran K."]
[Result "1/2-1/2"]
[Annotator "TA"]
[ECO "C77"]
[WhiteElo "2486"]
[BlackElo "2513"]
[PlyCount "51"]
[EventDate "2025.01.13"]
[EventType "tourn"]
[EventCountry "ARM"]
[SourceTitle "playchess.com"]
[Source "ChessBase"]
[SourceQuality "1"]
[TimeControl "40/5400+30:1800+30"]

{[%evp 10,51,32,10,36,18,19,18,5,12,20,18,24,29,19,20,34,0,3,14,19,16,45,26,25,1,13,17,25,29,29,29,35,35,33,29,23,0,1,0,0,0,0,0]} 1. e4 {[%emt 1:31:00]} e5 2. Nf3 Nc6 3. Bb5 a6 4. Ba4 Nf6 5. d3 Bc5 6. c3 O-O 7. Bg5 Re8 8. O-O h6 9. Bh4 b5 10. Bb3 Be7 11. a4 Rb8 12. axb5 axb5 13. d4 Nxe4 14. Bxe7 Nxe7 (14... Rxe7 $2 {is the wrong capture.} 15. d5 $18) 15. Nxe5 d5 16. Re1 {[%cal Oe1e4]} Bf5 17. Qh5 Nf6 18. Qf3 Be4 19. Qd1 (19. Nxf7 Bxf3 20. Nxd8 Bg4 $19 (20... Bxg2 21. Rxe7 Rxe7 22. Nc6 $16)) 19... c5 {[%cal Bc7c5,Bc5c4][%mdl 32]} 20. Nd2 {Hoping for Nxe4.} ({Don't play} 20. dxc5 Qc7 21. Ng4 Nd7 $15) 20... c4 21. Nxe4 $1 Nxe4 22. Bc2 Nf6 {Prevents Qh5} 23. b4 cxb3 24. Bxb3 Qc7 25. Qf3 Nc6 26. Ng4 {[%emt 0:00:00]} 1/2-1/2

[Event "85th ARM-ch HL 2025"]
[Site "Yerevan"]
[Date "2025.01.16"]
[Round "3.3"]
[White "Petrosyan, Manuel"]
[Black "Grigoryan, Karen H."]
[Result "1/2-1/2"]
[Annotator "TA"]
[ECO "D17"]
[WhiteElo "2590"]
[BlackElo "2572"]
[PlyCount "52"]
[EventDate "2025.01.13"]
[EventType "tourn"]
[EventCountry "ARM"]
[SourceTitle "playchess.com"]
[Source "ChessBase"]
[SourceQuality "1"]
[TimeControl "40/5400+30:1800+30"]

{[%evp 15,52,27,33,10,21,-8,-5,0,-5,-22,-29,-66,-12,-22,-14,-24,-24,-27,-10,-20,-26,-18,0,-16,0,0,0,0,0,0,0,0,0,0,0,1,11,15,15]} 1. d4 {[%emt 0:05:12]} Nf6 {[%emt 0:00:09]} 2. c4 {[%emt 0:00:06]} c6 {[%emt 0:00:16]} 3. Nc3 {[%emt 0:01:37]} d5 {[%emt 0:00:09]} 4. Nf3 {[%emt 0:00:04]} dxc4 {[%emt 0:00:32]} 5. a4 {[%emt 0:01:48]} Bf5 {[%emt 0:00:09]} 6. Ne5 {[%emt 0:00:35]} Nbd7 {[%emt 0:01:05]} 7. Nxc4 {[%emt 0:00:11]} Nb6 {[%emt 0:01:33]} 8. Ne5 {[%emt 0:01:18]} a5 {[%emt 0:00:08]} 9. f3 {[%emt 0:00:55]} Nfd7 {[%emt 0:00:09]} 10. e4 {[%emt 0:06:37]} Nxe5 {[%emt 0:00:11]} 11. exf5 {[%emt 0:00:04]} Ned7 {[%emt 0:00:29]} 12. Be3 {[%emt 0:29:05]} g6 {[%emt 0:02:06]} 13. d5 {[%emt 0:06:53]} Bg7 {[%emt 0:01:43] Against Qd4} (13... gxf5 $15 14. Qd3 Nxd5 15. Nxd5 cxd5 16. Qxd5 e6) 14. dxc6 $11 {[%emt 0:03:14]} bxc6 {[%emt 0:00:09]} 15. Qc2 {[%emt 0:03:07]} O-O {[%emt 0:03:05]} 16. Be2 {[%emt 0:01:48]} Qb8 {[%emt 0:03:46]} 17. fxg6 {[%emt 0:02:39]} hxg6 {[%emt 0:00:08]} 18. O-O {[%emt 0:00:14]} Rc8 {[%emt 0:02:15]} 19. Rac1 {[%emt 0:04:19]} Nf6 {[%emt 0:03:40]} 20. b3 {[%emt 0:03:23]} Nfd5 {[%emt 0:05:43]} 21. Nxd5 {[%emt 0:00:32]} Nxd5 {[%emt 0:00:09]} 22. Bf2 {[%emt 0:01:35]} Bf6 {[%emt 0:07:44]} 23. Bc4 {[%emt 0:01:49]} Kg7 {[%emt 0:01:33]} 24. Qe4 {[%emt 0:06:23]} Rh8 {[%emt 0:02:01][%csl Gh8][%cal Rb8h2]} 25. g3 {[%emt 0:00:54]} Qd6 {[%emt 0:08:08]} 26. h4 {[%emt 0:01:59]} Rhd8 {[%emt 0:56:30]} 1/2-1/2